fUST/lending_fUST_20250104
["ID","MTS","AMOUNT","RATE_DAILY","PERIOD"]
[347582119,1735924256624,-500.0,0.00021643,3]
[347582120,1735924256634,-592.14,0.00021643,3]
[347582121,1735924256644,-1302.98,0.00021643,3]
[347582122,1735924256654,-500.0,0.00021643,3]
[347582123,1735924256663,-500.0,0.00021643,3]
[347582124,1735924256673,-1351.62,0.00021643,3]
[347582125,1735924256682,-1051.97,0.00021643,3]
[347582126,1735924256691,-1167.27,0.00021643,3]
[347582127,1735924256702,-500.0,0.00021643,2]
[347582128,1735924256711,-500.0,0.00021643,3]
[347582129,1735924256721,-537.08,0.00021643,3]
[347582130,1735924256732,-5069.54,0.00021643,3]
[347582131,1735924256742,-500.0,0.00021643,3]
[347582132,1735924256751,-500.0,0.00021643,3]
[347582133,1735924256761,-7535.86,0.00021643,3]
[347582134,1735924256771,-189.3651438,0.00021659,2]
[347582135,1735924256780,-189.3651438,0.00021762,2]
[347582136,1735924256791,-151.0,0.000218,4]
[347582137,1735924256800,-189.3651438,0.00021866,2]
[347582138,1735924256810,-500.0,0.00021917,3]
[347582139,1735924256819,-602.29,0.00021917,3]
[347582140,1735924256829,-620.98009375,0.00021917,3]
[347582141,1735924256838,-500.0,0.00021917,3]
[347582142,1735924256848,-500.0,0.00021917,3]
[347582143,1735924256858,-500.0,0.00021917,3]
[347582144,1735924256868,-500.0,0.00021917,3]
[347582145,1735924256878,-500.0,0.00021917,3]
[347582146,1735924256888,-500.0,0.00021917,3]
[347582147,1735924256898,-500.0,0.00021917,3]
[347582148,1735924256907,-500.0,0.00021917,3]
[347582149,1735924256917,-1037.83,0.00021917,3]
[347582150,1735924256927,-2742.66,0.00021917,3]
[347582151,1735924256936,-607.65,0.00021917,3]
[347582152,1735924256945,-500.0,0.00021917,2]
[347582153,1735924256954,-500.0,0.00021917,3]
[347582154,1735924256963,-1185.66,0.00021917,3]
[347582155,1735924256973,-959.66,0.00021917,3]
[347582156,1735924256982,-447.15,0.00021917,3]
[347582157,1735924256992,-500.0,0.00021917,3]
[347582158,1735924257002,-500.0,0.00021917,3]
[347582159,1735924257011,-961.58,0.00021917,3]
[347582160,1735924257021,-4013.46,0.00021917,3]
[347582161,1735924257031,-994.81,0.00021917,3]
[347582162,1735924257041,-818.27,0.00021917,3]
[347582163,1735924257051,-544.85,0.00021917,3]
[347582164,1735924257060,-574.70776609,0.00021917,3]
[347582165,1735924257069,-500.0,0.00021917,3]
[347582166,1735924257078,-728.95,0.00021917,3]
[347582167,1735924257088,-609.31,0.00021917,3]
[347582168,1735924257098,-500.0,0.00021917,3]
[347582169,1735924257107,-500.0,0.00021917,3]
[347582170,1735924257117,-500.0,0.00021917,3]
[347582171,1735924257127,-2229.74,0.00021917,3]
[347582172,1735924257136,-242.58543652,0.00021917,3]
[347582173,1735924257146,-816.77,0.00021917,3]
[347582174,1735924257155,-1341.5,0.00021917,3]
[347582175,1735924257165,-555.74,0.00021917,3]
[347582176,1735924257174,-500.0,0.00021917,3]
[347582177,1735924257184,-1055.67,0.00021917,3]
[347582178,1735924257193,-503.38642326,0.00021917,3]
[347582179,1735924257203,-500.0,0.00021917,3]
[347582180,1735924257212,-500.0,0.00021917,3]
[347582181,1735924257222,-151.0,0.00021917,2]
[347582182,1735924257231,-500.0,0.00021917,3]
[347582183,1735924257241,-1082.29,0.00021917,3]
[347582184,1735924257251,-35051.82,0.00021917,3]
[347582185,1735924257260,-511.78,0.00021917,3]
[347582186,1735924257270,-500.0,0.00021917,3]
[347582187,1735924257279,-2754.83,0.00021917,3]
[347582188,1735924257289,-2325.63,0.00021917,3]
[347582189,1735924257299,-526.77,0.00021917,3]
[347582190,1735924257308,-151.0,0.00021917,2]
[347582191,1735924257318,-943.71,0.00021917,3]
[347582192,1735924257327,-500.0,0.00021917,3]
[347582193,1735924257337,-521.93,0.00021917,3]
[347582194,1735924257347,-1215.82,0.00021917,3]
[347582195,1735924257356,-3168.56,0.00021917,3]
[347582196,1735924257365,-500.0,0.00021917,3]
[347582197,1735924257375,-577.23,0.00021917,3]
[347582198,1735924257385,-1040.34,0.00021917,3]
[347582199,1735924257394,-500.0,0.00021917,3]
[347582200,1735924257404,-1302.98,0.00021917,3]
[347582201,1735924257413,-151.0,0.00021917,2]
[347582202,1735924257422,-500.0,0.00021917,3]
[347582203,1735924257432,-500.0,0.00021917,3]
[347582204,1735924257441,-151.0,0.00021917,2]
[347582205,1735924257450,-1351.62,0.00021917,3]
[347582206,1735924257460,-1051.97,0.00021917,3]
[347582207,1735924257469,-1167.27,0.00021917,3]
[347582208,1735924257478,-500.0,0.00021917,2]
[347582209,1735924257487,-500.0,0.00021917,3]
[347582210,1735924257496,-537.08,0.00021917,3]
[347582211,1735924257506,-5069.54,0.00021917,3]
[347582212,1735924257518,-500.0,0.00021917,3]
[347582213,1735924257527,-500.0,0.00021917,3]
[347582214,1735924257536,-7535.86,0.00021917,3]
[347582215,1735924257546,-189.3651438,0.00021969,2]
[347582216,1735924257557,-10387.96495411,0.00022069,2]
[347582217,1735924257567,-189.3651438,0.00022072,2]
[347582218,1735924257576,-151.0,0.000221,7]
[347582219,1735924257587,-189.3651438,0.00022176,2]
[347582220,1735924257604,-500.0,0.00022191,3]
[347582221,1735924257614,-602.29,0.00022191,3]
[347582222,1735924257623,-500.0,0.00022191,3]
[347582223,1735924257634,-500.0,0.00022191,3]
[347582224,1735924257643,-500.0,0.00022191,3]
[347582225,1735924257652,-500.0,0.00022191,3]
[347582226,1735924257662,-500.0,0.00022191,3]
[347582227,1735924257671,-500.0,0.00022191,3]
[347582228,1735924257682,-500.0,0.00022191,3]
[347582229,1735924257691,-500.0,0.00022191,3]
[347582230,1735924257700,-1037.83,0.00022191,3]
[347582231,1735924257710,-2742.66,0.00022191,3]
[347582232,1735924257719,-607.65,0.00022191,3]
[347582233,1735924257728,-500.0,0.00022191,2]
[347582234,1735924257737,-500.0,0.00022191,3]
[347582235,1735924257747,-1185.66,0.00022191,3]
[347582236,1735924257756,-959.66,0.00022191,3]
[347582237,1735924257765,-500.0,0.00022191,3]
[347582238,1735924257775,-161.46,0.00022191,3]
[347582239,1735924257784,-961.58,0.00022191,3]
[347582240,1735924257794,-4013.46,0.00022191,3]
[347582241,1735924257803,-994.81,0.00022191,3]
[347582242,1735924257812,-818.27,0.00022191,3]
[347582243,1735924257822,-544.85,0.00022191,3]
[347582244,1735924257831,-500.0,0.00022191,3]
[347582245,1735924257841,-728.95,0.00022191,3]
[347582246,1735924257851,-609.31,0.00022191,3]
[347582247,1735924257860,-500.0,0.00022191,3]
[347582248,1735924257870,-500.0,0.00022191,3]
[347582249,1735924257879,-2229.74,0.00022191,3]
[347582250,1735924257889,-816.77,0.00022191,3]
[347582251,1735924257899,-1341.5,0.00022191,3]
[347582252,1735924257908,-500.0,0.00022191,3]
[347582253,1735924257918,-1055.67,0.00022191,3]
[347582254,1735924257928,-500.0,0.00022191,3]
[347582255,1735924257938,-500.0,0.00022191,3]
[347582256,1735924257947,-500.0,0.00022191,3]
[347582257,1735924257957,-1082.29,0.00022191,3]
[347582258,1735924257967,-35051.82,0.00022191,3]
[347582259,1735924257977,-511.78,0.00022191,3]
[347582260,1735924257987,-500.0,0.00022191,3]
[347582261,1735924257996,-2754.83,0.00022191,3]
[347582262,1735924258006,-2325.63,0.00022191,3]
[347582263,1735924258016,-526.77,0.00022191,3]
[347582264,1735924258027,-943.71,0.00022191,3]
[347582265,1735924258036,-500.0,0.00022191,3]
[347582266,1735924258045,-521.93,0.00022191,3]
[347582267,1735924258055,-1215.82,0.00022191,3]
[347582268,1735924258064,-3168.56,0.00022191,3]
[347582269,1735924258073,-577.23,0.00022191,3]
[347582270,1735924258084,-1040.34,0.00022191,3]
[347582271,1735924258093,-500.0,0.00022191,3]
[347582272,1735924258103,-1302.98,0.00022191,3]
[347582273,1735924258112,-500.0,0.00022191,3]
[347582274,1735924258122,-1351.62,0.00022191,3]
[347582275,1735924258134,-1051.97,0.00022191,3]
[347582276,1735924258144,-1167.27,0.00022191,3]
[347582277,1735924258154,-416.89,0.00022191,2]
[347582278,1735924258163,-500.0,0.00022191,3]
[347582279,1735924258173,-537.08,0.00022191,3]
[347582280,1735924258182,-5069.54,0.00022191,3]
[347582281,1735924258191,-500.0,0.00022191,3]
[347582282,1735924258201,-7535.86,0.00022191,3]
[347582283,1735924258308,-189.3651438,0.00022279,2]
[347582284,1735924258319,-10387.96495411,0.00022286,2]
[347582285,1735924258328,-515.0,0.000223,10]
[347582286,1735924258338,-18416.57296242,0.000223,2]
[347582287,1735924258348,-16590.2951683,0.000223,2]
[347582288,1735924258357,-16590.2951683,0.000223,2]
[347582289,1735924258367,-16590.2951683,0.000223,2]
[347582290,1735924258377,-16590.2951683,0.000223,2]
[347582291,1735924258386,-733.8665265,0.00022365,2]
[347582292,1735924258395,-189.3651438,0.00022383,2]
[347582293,1735924258405,-733.86652648,0.00022389,2]
[347582294,1735924258414,-151.0,0.00022399,7]
[347582295,1735924258424,-151.0,0.000224,10]
[347582296,1735924258433,-10318.67941492,0.00022406,2]
[347582297,1735924258443,-733.86652648,0.00022414,2]
[347582298,1735924258453,-733.86652648,0.00022438,2]
[347582299,1735924258463,-733.86652648,0.00022463,2]
[347582300,1735924258472,-18708.78639207,0.00022465,14]
[347582301,1735924258483,-500.0,0.00022465,3]
[347582302,1735924258493,-602.29,0.00022465,3]
[347582303,1735924258503,-500.0,0.00022465,3]
[347582304,1735924258515,-500.0,0.00022465,3]
[347582305,1735924258525,-500.0,0.00022465,3]
[347582306,1735924258535,-500.0,0.00022465,3]
[347582307,1735924258544,-500.0,0.00022465,3]
[347582308,1735924258555,-500.0,0.00022465,3]
[347582309,1735924258564,-500.0,0.00022465,3]
[347582310,1735924258574,-500.0,0.00022465,3]
[347582311,1735924258584,-1037.83,0.00022465,3]
[347582312,1735924258595,-2742.66,0.00022465,3]
[347582313,1735924258605,-607.65,0.00022465,3]
[347582314,1735924258617,-500.0,0.00022465,2]
[347582315,1735924258627,-500.0,0.00022465,3]
[347582316,1735924258636,-1185.66,0.00022465,3]
[347582317,1735924258646,-959.66,0.00022465,3]
[347582318,1735924258655,-500.0,0.00022465,3]
[347582319,1735924258665,-961.58,0.00022465,3]
[347582320,1735924258676,-4013.46,0.00022465,3]
[347582321,1735924258687,-994.81,0.00022465,3]
[347582322,1735924258697,-818.27,0.00022465,3]
[347582323,1735924258706,-544.85,0.00022465,3]
[347582324,1735924258718,-500.0,0.00022465,3]
[347582325,1735924258728,-728.95,0.00022465,3]
[347582326,1735924258738,-609.31,0.00022465,3]
[347582327,1735924258748,-500.0,0.00022465,3]
[347582328,1735924258757,-206.48,0.00022465,3]
[347582329,1735924258767,-2229.74,0.00022465,3]
[347582330,1735924258779,-816.77,0.00022465,3]
[347582331,1735924258789,-1341.5,0.00022465,3]
[347582332,1735924258799,-500.0,0.00022465,3]
[347582333,1735924258810,-1055.67,0.00022465,3]
[347582334,1735924258819,-500.0,0.00022465,3]
[347582335,1735924258829,-500.0,0.00022465,3]
[347582336,1735924258839,-500.0,0.00022465,3]
[347582337,1735924258849,-1082.29,0.00022465,3]
[347582338,1735924258859,-35051.82,0.00022465,3]
[347582339,1735924258870,-511.78,0.00022465,3]
[347582340,1735924258881,-151.0,0.00022465,7]
[347582341,1735924258890,-500.0,0.00022465,3]
[347582342,1735924258900,-2754.83,0.00022465,3]
[347582343,1735924258910,-2325.63,0.00022465,3]
[347582344,1735924258920,-526.77,0.00022465,3]
[347582345,1735924258929,-943.71,0.00022465,3]
[347582346,1735924258939,-500.0,0.00022465,3]
[347582347,1735924258948,-521.93,0.00022465,3]
[347582348,1735924258961,-1215.82,0.00022465,3]
[347582349,1735924258970,-3168.56,0.00022465,3]
[347582350,1735924258980,-577.23,0.00022465,3]
[347582351,1735924258989,-1040.34,0.00022465,3]
[347582352,1735924258999,-500.0,0.00022465,3]
[347582353,1735924259009,-1302.98,0.00022465,3]
[347582354,1735924259019,-500.0,0.00022465,3]
[347582355,1735924259029,-1351.62,0.00022465,3]
[347582356,1735924259039,-1051.97,0.00022465,3]
[347582357,1735924259048,-1167.27,0.00022465,3]
[347582358,1735924259058,-500.0,0.00022465,3]
[347582359,1735924259068,-537.08,0.00022465,3]
[347582360,1735924259078,-5069.54,0.00022465,3]
[347582361,1735924259087,-7535.86,0.00022465,3]
[347582362,1735924259098,-216.9645596,0.00022472,2]
[347582363,1735924259108,-1000.0,0.00022481,2]
[347582364,1735924259117,-1000.0,0.00022484,2]
[347582365,1735924259127,-189.3651438,0.00022486,2]
[347582366,1735924259137,-733.86652648,0.00022487,2]
[347582367,1735924259148,-1500.0,0.00022495,2]
[347582368,1735924259159,-1003.12169645,0.00022495,2]
[347582369,1735924259169,-1000.0,0.00022498,2]
[347582370,1735924259179,-733.86652648,0.00022512,2]
[347582371,1735924259188,-1000.0,0.00022522,2]
[347582372,1735924259198,-733.86652648,0.00022536,2]
[347582373,1735924259207,-1000.0,0.00022537,2]
[347582374,1735924259217,-1000.0,0.00022541,2]
[347582375,1735924259226,-394.0,0.00022553,2]
[347582376,1735924259236,-1000.0,0.0002256,2]
[347582377,1735924259247,-733.86652648,0.00022561,2]
[347582378,1735924259262,-1000.0,0.00022579,2]
[347582379,1735924259279,-733.86652648,0.00022585,2]
[347582380,1735924259294,-189.3651438,0.0002259,2]
[347582381,1735924259306,-1882.2,0.000226,2]
[347582382,1735924259321,-2000.0,0.000226,2]
[347582383,1735924259336,-158.28506001,0.00022613,2]
[347582384,1735924259351,-1000.0,0.00022615,2]
[347582385,1735924259365,-1000.0,0.00022649,2]
[347582386,1735924259380,-1000.0,0.00022654,2]
[347582387,1735924259395,-1000.0,0.00022655,2]
[347582388,1735924259408,-193.059338,0.00022678,7]
[347582389,1735924259421,-193.059338,0.00022678,7]
[347582390,1735924259434,-193.059338,0.00022678,7]
[347582391,1735924259448,-193.059338,0.00022678,7]
[347582392,1735924259462,-193.059338,0.00022678,7]
[347582393,1735924259473,-193.059338,0.00022678,7]
[347582394,1735924259486,-193.059338,0.00022678,7]
[347582395,1735924259497,-193.059338,0.00022678,7]
[347582396,1735924259512,-193.059338,0.00022678,7]
[347582397,1735924259527,-193.059338,0.00022678,7]
[347582398,1735924259539,-193.059338,0.00022678,7]
[347582399,1735924259556,-193.059338,0.00022678,7]
[347582400,1735924259571,-193.059338,0.00022678,7]
[347582401,1735924259584,-193.059338,0.00022678,7]
[347582402,1735924259595,-193.059338,0.00022678,7]
[347582403,1735924259607,-193.059338,0.00022678,7]
[347582404,1735924259620,-193.059338,0.00022678,7]
[347582405,1735924259636,-193.059338,0.00022678,7]
[347582406,1735924259648,-193.059338,0.00022678,7]
[347582407,1735924259659,-193.059346,0.00022678,7]
[347582408,1735924259673,-151.0,0.00022678,7]
[347582409,1735924259685,-151.0,0.00022678,7]
[347582410,1735924259697,-151.0,0.00022678,7]
[347582411,1735924259708,-151.0,0.00022678,7]
[347582412,1735924259720,-151.0,0.00022678,7]
[347582413,1735924259732,-151.0,0.00022678,7]
[347582414,1735924259744,-151.0,0.00022678,7]
[347582415,1735924259756,-151.0,0.00022678,7]
[347582416,1735924259768,-151.0,0.00022678,7]
[347582417,1735924259780,-151.0,0.00022678,7]
[347582418,1735924259793,-151.0,0.00022678,7]
[347582419,1735924259805,-289.408466,0.00022678,7]
[347582420,1735924259817,-8596.22040123,0.00022685,2]
[347582421,1735924259829,-92318.69211894,0.00022685,2]
[347582422,1735924259841,-384459.13405294,0.00022685,10]
[347582425,1735924551644,-500.0,0.00017594,2]
[347582426,1735924551667,-396.313176,0.00017621,2]
[347582427,1735924551691,-196.33549775,0.00017672,2]
[347582428,1735924551712,-500.0,0.00017772,2]
[347582429,1735924551734,-707.513829,0.00018135,2]
[347582430,1735924551756,-193.7389387,0.00018227,2]
[347582431,1735924551777,-5390.6948052,0.00018389,2]
[347582432,1735924551800,-300.0,0.00019177,2]
[347582433,1735924551821,-500.0,0.00019178,2]
[347582434,1735924551841,-380.1226164,0.00019178,2]
[347582435,1735924551864,-500.0,0.00019178,2]
[347582436,1735924551887,-500.0,0.00019178,2]
[347582437,1735924551907,-500.0,0.00019178,2]
[347582438,1735924551929,-504.37346598,0.00019178,2]
[347582439,1735924551950,-500.0,0.00019178,2]
[347582440,1735924551972,-500.0,0.00019178,2]
[347582441,1735924551993,-500.0,0.00019178,2]
[347582442,1735924552015,-500.0,0.00019178,2]
[347582443,1735924552037,-500.0,0.00019178,2]
[347582444,1735924552060,-501.08690978,0.00019178,2]
[347582445,1735924552081,-500.0,0.00019178,2]
[347582446,1735924552103,-500.0,0.00019178,2]
[347582447,1735924552124,-500.0,0.00019178,2]
[347582448,1735924552147,-500.0,0.00019178,2]
[347582449,1735924552170,-500.0,0.00019178,2]
[347582450,1735924552192,-500.0,0.00019178,2]
[347582451,1735924552215,-500.0,0.00019178,2]
[347582452,1735924552236,-500.0,0.00019178,2]
[347582453,1735924552258,-500.0,0.00019178,2]
[347582454,1735924552279,-500.0,0.00019178,2]
[347582455,1735924552300,-500.0,0.00019178,2]
[347582456,1735924552322,-500.0,0.00019178,2]
[347582457,1735924552343,-523.70118117,0.00019178,2]
[347582458,1735924552366,-500.0,0.00019178,2]
[347582459,1735924552389,-500.0,0.00019178,2]
[347582460,1735924552523,-500.0,0.00019178,2]
[347582461,1735924552546,-500.0,0.00019178,2]
[347582462,1735924552569,-500.0,0.00019178,2]
[347582463,1735924552595,-500.0,0.00019178,2]
[347582464,1735924552616,-500.0,0.00019178,2]
[347582465,1735924552639,-500.0,0.00019178,2]
[347582466,1735924552662,-500.0,0.00019178,2]
[347582467,1735924552684,-500.0,0.00019178,2]
[347582468,1735924552707,-500.0,0.00019178,2]
[347582469,1735924552731,-500.0,0.00019178,2]
[347582470,1735924552755,-500.0,0.00019178,2]
[347582471,1735924552778,-500.0,0.00019178,2]
[347582472,1735924552802,-500.0,0.00019178,2]
[347582473,1735924552825,-500.0,0.00019178,2]
[347582474,1735924552847,-500.0,0.00019178,2]
[347582475,1735924552871,-500.0,0.00019178,2]
[347582476,1735924552896,-500.0,0.00019178,2]
[347582477,1735924552919,-500.0,0.00019178,2]
[347582478,1735924552940,-500.0,0.00019178,2]
[347582479,1735924552962,-500.0,0.00019178,2]
[347582480,1735924552985,-500.0,0.00019178,2]
[347582481,1735924553007,-500.0,0.00019178,2]
[347582482,1735924553030,-500.0,0.00019178,2]
[347582483,1735924553053,-500.0,0.00019178,2]
[347582484,1735924553074,-500.0,0.00019178,2]
[347582485,1735924553096,-3421.14,0.00019178,2]
[347582486,1735924553119,-500.0,0.00019178,2]
[347582487,1735924553142,-500.0,0.00019178,2]
[347582488,1735924553164,-500.0,0.00019178,2]
[347582489,1735924553184,-500.0,0.00019178,2]
[347582490,1735924553205,-500.0,0.00019178,2]
[347582491,1735924553229,-500.0,0.00019178,2]
[347582492,1735924553251,-500.0,0.00019178,2]
[347582493,1735924553273,-500.0,0.00019178,2]
[347582494,1735924553295,-500.0,0.00019178,2]
[347582495,1735924553317,-500.0,0.00019178,2]
[347582496,1735924553340,-500.0,0.00019178,2]
[347582497,1735924553362,-500.0,0.00019178,2]
[347582498,1735924553385,-500.0,0.00019178,2]
[347582499,1735924553408,-500.0,0.00019178,2]
[347582500,1735924553429,-188.0,0.00019178,2]
[347582501,1735924553449,-500.0,0.00019178,2]
[347582502,1735924553471,-500.0,0.00019178,2]
[347582503,1735924553492,-500.0,0.00019178,2]
[347582504,1735924553515,-500.0,0.00019178,2]
[347582505,1735924553537,-500.0,0.00019178,2]
[347582506,1735924553559,-500.0,0.00019178,2]
[347582507,1735924553597,-500.0,0.00019178,2]
[347582508,1735924553627,-500.0,0.00019178,2]
[347582509,1735924553660,-453.65863725,0.00019178,2]
[347582510,1735924553695,-500.0,0.00019178,2]
[347582511,1735924553727,-500.0,0.00019178,2]
[347582512,1735924553757,-1065.92,0.00019178,2]
[347582513,1735924553789,-500.0,0.00019178,2]
[347582514,1735924553817,-500.0,0.00019178,2]
[347582515,1735924553845,-500.0,0.00019178,2]
[347582516,1735924553876,-500.0,0.00019178,2]
[347582517,1735924553908,-542.38,0.00019178,2]
[347582518,1735924553940,-500.0,0.00019178,2]
[347582519,1735924553964,-182.93867897,0.00019178,2]
[347582520,1735924553994,-500.0,0.00019178,2]
[347582521,1735924554021,-500.0,0.00019178,2]
[347582522,1735924554050,-500.0,0.00019178,2]
[347582523,1735924554078,-500.0,0.00019178,2]
[347582524,1735924554105,-500.0,0.00019178,2]
[347582525,1735924554135,-500.0,0.00019178,2]
[347582526,1735924554161,-500.0,0.00019178,2]
[347582527,1735924554188,-1262.63,0.00019178,2]
[347582528,1735924554217,-364.11440527,0.00019178,2]
[347582529,1735924554245,-500.0,0.00019178,2]
[347582530,1735924554274,-500.0,0.00019178,2]
[347582531,1735924554302,-500.0,0.00019178,2]
[347582532,1735924554329,-500.0,0.00019178,2]
[347582533,1735924554357,-500.0,0.00019178,2]
[347582534,1735924554385,-500.78111728,0.00019178,2]
[347582535,1735924554413,-524.64,0.00019178,2]
[347582536,1735924554441,-500.0,0.00019178,2]
[347582537,1735924554469,-500.0,0.00019178,2]
[347582538,1735924554502,-500.0,0.00019178,2]
[347582539,1735924554527,-500.0,0.00019178,2]
[347582540,1735924554552,-500.0,0.00019178,2]
[347582541,1735924554575,-500.0,0.00019178,2]
[347582542,1735924554603,-599.98,0.00019178,2]
[347582543,1735924554628,-500.0,0.00019178,2]
[347582544,1735924554653,-5799.93674125,0.00019178,2]
[347582549,1735924738592,168.791497,0.00013973,2]
[347582694,1735925432358,-250.0,0.00017282,2]
[347582696,1735925432368,-250.0,0.00017634,2]
[347582698,1735925432377,-500.0,0.00017772,2]
[347582700,1735925432387,-1446.40245206,0.00018,2]
[347582702,1735925432396,-300.0,0.00018134,2]
[347582704,1735925432406,-531.809247,0.00018135,2]
[347582706,1735925432416,-2424.2545625,0.00018135,2]
[347582709,1735925432428,-13094.0824548,0.00018135,2]
[347582711,1735925432438,-2786.2636635,0.00018252,2]
[347582713,1735925432447,-319.6898658,0.00018427,2]
[347582715,1735925432457,-7088.10881033,0.000188,2]
[347582716,1735925432466,-268.5267713,0.000189,2]
[347582718,1735925432476,-154.5,0.00019177,2]
[347582720,1735925432485,-166.449,0.00019177,2]
[347582722,1735925432494,-500.0,0.00019177,5]
[347582724,1735925432504,-500.0,0.00019177,2]
[347582727,1735925432513,-592.34231642,0.00019177,2]
[347582728,1735925432523,-500.0,0.00019177,2]
[347582730,1735925432532,-423.11196788,0.00019177,2]
[347582732,1735925432542,-500.0,0.00019177,2]
[347582735,1735925432552,-430.98979278,0.00019177,2]
[347582737,1735925432562,-500.0,0.00019177,2]
[347582739,1735925432571,-520.23661617,0.00019178,2]
[347582741,1735925432581,-500.0,0.00019178,2]
[347582743,1735925432590,-500.0,0.00019178,2]
[347582745,1735925432601,-500.0,0.00019178,2]
[347582746,1735925432610,-503.62908198,0.00019178,2]
[347582748,1735925432620,-500.0,0.00019178,2]
[347582750,1735925432629,-500.0,0.00019178,2]
[347582752,1735925432638,-500.0,0.00019178,2]
[347582754,1735925432647,-500.0,0.00019178,2]
[347582756,1735925432657,-254.99018142,0.00019178,2]
[347582758,1735925432666,-500.0,0.00019178,2]
[347582760,1735925432675,-500.0,0.00019178,2]
[347582762,1735925432684,-500.0,0.00019178,2]
[347582764,1735925432694,-500.0,0.00019178,2]
[347582766,1735925432704,-257.61269166,0.00019178,2]
[347582768,1735925432713,-500.0,0.00019178,2]
[347582770,1735925432723,-500.0,0.00019178,2]
[347582772,1735925432732,-448.96504044,0.00019178,2]
[347582774,1735925432742,-200.0,0.00019178,2]
[347582776,1735925432752,-500.0,0.00019178,2]
[347582778,1735925432762,-500.0,0.00019178,2]
[347582780,1735925432771,-500.0,0.00019178,2]
[347582782,1735925432780,-500.0,0.00019178,2]
[347582784,1735925432789,-500.0,0.00019178,2]
[347582786,1735925432798,-500.0,0.00019178,2]
[347582788,1735925432807,-500.0,0.00019178,2]
[347582790,1735925432817,-500.0,0.00019178,2]
[347582792,1735925432826,-500.0,0.00019178,2]
[347582794,1735925432839,-500.0,0.00019178,2]
[347582796,1735925432851,-500.0,0.00019178,2]
[347582798,1735925432861,-500.0,0.00019178,2]
[347582800,1735925432871,-500.0,0.00019178,2]
[347582802,1735925432881,-396.18687621,0.00019178,2]
[347582804,1735925432890,-500.0,0.00019178,2]
[347582806,1735925432899,-500.0,0.00019178,2]
[347582808,1735925432909,-500.0,0.00019178,2]
[347582810,1735925432919,-500.0,0.00019178,2]
[347582811,1735925432928,-500.0,0.00019178,2]
[347582812,1735925432938,-500.0,0.00019178,2]
[347582813,1735925432948,-500.0,0.00019178,2]
[347582815,1735925432957,-500.0,0.00019178,2]
[347582818,1735925432967,-500.0,0.00019178,2]
[347582820,1735925432979,-500.0,0.00019178,2]
[347582822,1735925432990,-640.1912886,0.00019178,2]
[347582824,1735925433000,-500.0,0.00019178,2]
[347582826,1735925433008,-500.0,0.00019178,2]
[347582828,1735925433017,-500.0,0.00019178,2]
[347582830,1735925433027,-500.0,0.00019178,2]
[347582832,1735925433036,-500.0,0.00019178,2]
[347582834,1735925433047,-411.64844619,0.00019178,2]
[347582836,1735925433057,-500.0,0.00019178,2]
[347582838,1735925433067,-500.0,0.00019178,2]
[347582840,1735925433077,-500.0,0.00019178,2]